bitfinex-derivatives/quotes_BNBF0:USTF0_20250303
["timestamp","ask_amount","ask_price","bid_price","bid_amount"]
[1741033511937,0.3474273,575.66,574.92,0.31954997]
[1741033512428,0.3474273,575.66,574.93,0.31954997]
[1741033512630,0.3474273,575.66,574.94,0.31954997]
[1741033512831,0.3474273,575.66,574.9,1.28520482]
[1741033513032,0.3474273,575.66,574.95,0.31923842]
[1741033513229,0.3474273,575.66,574.91,0.31923842]
[1741033513429,0.3474273,575.66,574.92,0.31923842]
[1741033513637,0.3474273,575.66,574.93,0.31923842]
[1741033513934,0.3474273,575.66,574.94,0.31923842]
[1741033514128,0.3474273,575.66,574.95,0.31923842]
[1741033514331,0.3474273,575.66,574.96,0.31923842]
[1741033514538,0.28500228,575.74,574.97,0.31923842]
[1741033514830,0.28500228,575.74,574.82,0.69678968]
[1741033514831,0.28500228,575.74,574.98,0.31923842]
[1741033515031,0.28500228,575.74,574.98,0.34783818]
[1741033515235,0.28500228,575.74,574.99,0.31923842]
[1741033516239,0.28500228,575.74,574.98,0.34783818]
[1741033516432,0.28500228,575.74,575.0,0.31925017]
[1741033516637,0.28500228,575.74,575.01,0.31925017]
[1741033516936,0.28500228,575.74,575.02,0.31925017]
[1741033517145,0.28500228,575.74,575.03,0.31925017]
[1741033517339,0.28500228,575.74,575.04,0.31925017]
[1741033517532,0.28500228,575.74,575.05,0.31925017]
[1741033517737,0.28500228,575.74,575.06,0.31925017]
[1741033517938,0.28500228,575.74,574.99,0.31925017]
[1741033518141,0.28500228,575.74,575.0,0.31925017]
[1741033518340,0.28500228,575.74,574.99,0.31925017]
[1741033518536,0.28500228,575.74,575.0,0.31925017]
[1741033518740,0.28500228,575.74,574.98,0.34783818]
[1741033519038,0.28500228,575.74,574.99,0.3194253]
[1741033519244,0.28500228,575.74,575.0,0.3194253]
[1741033519542,0.28500228,575.74,575.01,0.31931433]
[1741033519741,0.28500228,575.74,575.02,0.31931433]
[1741033519939,0.28500228,575.74,575.03,0.31931433]
[1741033520140,0.28500228,575.74,575.04,0.31931433]
[1741033520340,0.28500228,575.74,575.05,0.31931433]
[1741033520643,0.28500228,575.74,575.06,0.31931433]
[1741033520847,0.28500228,575.74,575.03,0.31931433]
[1741033521142,0.28500228,575.74,575.04,0.31931433]
[1741033521347,0.28500228,575.74,575.03,0.31931433]
[1741033521637,0.28500228,575.74,575.04,0.31931433]
[1741033521837,0.28500228,575.74,575.05,0.31931433]
[1741033522035,0.28500228,575.74,575.06,0.31931433]
[1741033522236,0.28500228,575.74,575.07,0.31931433]
[1741033522442,0.28500228,575.74,575.08,0.31931433]
[1741033522644,0.28500228,575.74,575.09,0.31931433]
[1741033522842,0.28500228,575.74,575.02,1.592]
[1741033522843,0.28500228,575.74,575.1,0.31931433]
[1741033523043,0.28500228,575.74,575.11,0.31931433]
[1741033523244,0.28500228,575.74,575.12,0.31931433]
[1741033523443,0.28500228,575.74,575.1,1.154]
[1741033523444,0.28500228,575.74,575.13,0.31931433]
[1741033523643,0.28500228,575.74,575.14,0.31931433]
[1741033523843,0.28500228,575.74,575.15,0.31931433]
[1741033524045,0.28500228,575.74,575.16,0.31931433]
[1741033524544,0.28500228,575.74,575.1,1.154]
[1741033524545,0.28500228,575.74,575.11,0.31931433]
[1741033524738,0.28500228,575.74,575.17,0.31931433]
[1741033524942,0.28500228,575.74,575.18,0.31931433]
[1741033525143,0.28500228,575.74,575.11,0.31931433]
[1741033525444,0.28500228,575.74,575.12,0.31931433]
[1741033525640,0.28500228,575.74,575.11,0.31931433]
[1741033525950,0.28500228,575.74,575.12,0.31926845]
[1741033526249,0.28500228,575.74,575.13,0.31926845]
[1741033526450,0.28500228,575.74,575.14,0.31926845]
[1741033526753,0.28500228,575.74,575.15,0.31926845]
[1741033526948,0.28500228,575.74,575.16,0.31926845]
[1741033527244,0.28500228,575.74,575.17,0.31926845]
[1741033527441,0.28500228,575.74,575.1,1.154]
[1741033527645,0.28500228,575.74,575.11,0.31920527]
[1741033527846,0.28500228,575.74,575.1,1.154]
[1741033527847,0.28500228,575.74,575.12,0.31920527]
[1741033528046,0.28500228,575.74,575.13,0.31920527]
[1741033528343,0.28500228,575.74,575.14,0.31920527]
[1741033528549,0.28500228,575.74,575.15,0.31920527]
[1741033528746,0.28500228,575.74,575.16,0.31920527]
[1741033528945,0.28500228,575.74,575.1,1.154]
[1741033529145,0.28500228,575.74,575.11,0.31921009]
[1741033529447,0.28500228,575.74,575.12,0.31921009]
[1741033529647,0.28500228,575.74,575.1,1.154]
[1741033529648,0.28500228,575.74,575.13,0.31921009]
[1741033529849,0.28500228,575.74,575.14,0.31921009]
[1741033530047,0.28500228,575.74,575.15,0.31921009]
[1741033530243,0.28500228,575.74,575.16,0.31921009]
[1741033530443,0.28500228,575.74,575.13,1.126]
[1741033530643,0.28500228,575.74,575.14,0.31920033]
[1741033530843,0.28500228,575.74,575.15,0.31920033]
[1741033531046,0.28500228,575.74,575.16,0.31920033]
[1741033531344,0.28500228,575.74,575.17,0.31920033]
[1741033531546,0.28500228,575.74,575.18,0.31920033]
[1741033531750,0.28500228,575.74,575.19,0.31920033]
[1741033531949,0.28500228,575.74,575.2,0.31920033]
[1741033532248,0.28500228,575.74,575.21,0.31920033]
[1741033532452,0.28500228,575.74,575.22,0.31920033]
[1741033532657,0.28500228,575.74,575.23,0.31920033]
[1741033532847,0.28500228,575.74,575.24,0.31920033]
[1741033533045,0.28500228,575.74,575.25,0.31920033]
[1741033533250,0.28500228,575.74,575.26,0.31920033]
[1741033533451,0.28500228,575.74,575.27,0.31920033]
[1741033533652,0.28500228,575.74,575.13,1.126]
[1741033533850,0.28500228,575.74,575.14,0.31911021]
[1741033534055,0.28500228,575.74,575.15,0.31911021]
[1741033534251,0.28500228,575.74,575.16,0.31911021]
[1741033534453,0.28500228,575.74,575.17,0.31911021]
[1741033534656,0.28500228,575.74,575.18,0.31911021]
[1741033534848,0.28500228,575.74,575.19,0.31911021]
[1741033535047,0.28500228,575.74,575.2,0.31911021]
[1741033535246,0.28500228,575.74,575.13,1.126]
[1741033535451,0.28500228,575.74,575.14,0.31914128]
[1741033535652,0.28500228,575.74,575.15,0.31914128]
[1741033535854,0.28500228,575.74,575.16,0.31914128]
[1741033536152,0.28500228,575.74,575.17,0.31914128]
[1741033536347,0.28500228,575.74,575.18,0.31914128]
[1741033536654,0.28500228,575.74,575.13,1.126]
[1741033536655,0.28500228,575.74,575.19,0.31914128]
[1741033536853,0.28500228,575.74,575.14,0.31914128]
[1741033537054,0.28500228,575.74,575.15,0.31914128]
[1741033537246,0.28500228,575.74,575.16,0.31914128]
[1741033537451,0.28500228,575.74,575.17,0.31914128]
[1741033537649,0.28500228,575.74,575.18,0.31914128]
[1741033537851,0.28500228,575.74,575.19,0.31914128]
[1741033538047,0.28500228,575.74,575.2,0.31914128]
[1741033538249,0.28500228,575.74,575.21,0.31914128]
[1741033538465,0.28500228,575.74,575.14,0.31914128]
[1741033538650,0.28500228,575.74,575.15,0.31914128]
[1741033538851,0.28500228,575.74,575.14,0.31914128]
[1741033539057,0.28500228,575.74,575.15,0.31932772]
[1741033539251,0.28500228,575.74,575.14,0.31932772]
[1741033539556,0.28500228,575.74,575.15,0.31932772]
[1741033539756,0.28500228,575.74,575.14,0.31932772]
[1741033539962,0.28500228,575.74,575.15,0.31932772]
[1741033540256,0.28500228,575.74,575.16,0.31932772]
[1741033540457,0.28500228,575.74,575.17,0.31932772]
[1741033540658,0.28500228,575.74,575.18,0.31932772]
[1741033540860,0.28500228,575.74,575.19,0.31932772]
[1741033541055,0.28500228,575.74,575.14,0.31932772]
[1741033541261,0.28500228,575.74,575.15,0.31932772]
[1741033541458,0.28500228,575.74,575.16,0.31932772]
[1741033541660,0.28500228,575.74,575.14,0.31932772]
[1741033541860,0.28500228,575.74,575.13,1.126]
[1741033542057,0.28500228,575.74,575.14,1.60446471]
[1741033542255,0.28500228,575.74,575.15,0.31925989]
[1741033545361,0.28500228,575.74,575.14,0.31925989]
[1741033550169,0.28500228,575.74,575.15,0.31925989]
[1741033550470,0.28500228,575.74,575.16,0.31925989]
[1741033550670,0.28500228,575.74,575.17,0.31925989]
[1741033550868,0.28500228,575.74,575.18,0.31925989]
[1741033551069,0.28500228,575.74,575.19,0.31925989]
[1741033551271,0.28500228,575.74,575.2,0.31925989]
[1741033551572,0.28500228,575.74,575.21,0.31925989]
[1741033551869,0.28500228,575.74,575.22,0.31925989]
[1741033552171,0.28500228,575.74,575.23,0.31925989]
[1741033552373,0.28500228,575.74,575.24,0.31925989]
[1741033552671,0.28500228,575.74,575.25,0.31925989]
[1741033552970,0.28500228,575.74,575.26,0.31925989]
[1741033553171,0.28500228,575.74,575.27,2.05025989]
[1741033553366,0.28500228,575.74,575.29,1.28520482]
[1741033553568,0.28500228,575.74,575.3,0.31925989]
[1741033553770,0.28500228,575.74,575.31,0.31925989]
[1741033553970,0.28500228,575.74,575.29,1.28520482]
[1741033553971,0.28500228,575.74,575.32,0.31925989]
[1741033554166,0.28500228,575.74,575.33,0.31925989]
[1741033554373,0.28500228,575.74,575.34,0.31925989]
[1741033554574,0.28500228,575.74,575.35,0.31925989]
[1741033554875,0.28500228,575.74,575.36,0.31925989]
[1741033555174,0.05575182,575.74,575.37,0.31925989]
[1741033555370,0.05575182,575.74,575.38,0.31925989]
[1741033555569,0.05575182,575.74,575.39,0.31925989]
[1741033555773,0.05575182,575.74,575.4,0.31925989]
[1741033555974,0.05575182,575.74,575.41,0.31925989]
[1741033556167,0.05575182,575.74,575.42,0.31925989]
[1741033556368,0.05575182,575.74,575.49,1.28520482]
[1741033556572,0.05575182,575.74,575.5,0.31925989]
[1741033556871,0.05575182,575.74,575.51,0.31925989]
[1741033557069,0.01108437,575.74,575.52,0.31925989]
[1741033557269,0.01108437,575.74,575.53,0.31925989]
[1741033557571,0.01108437,575.74,575.54,0.31925989]
[1741033557875,0.01108437,575.74,575.55,0.66675359]
[1741033558068,0.01108437,575.74,575.55,0.3474937]
[1741033558371,0.01108437,575.74,575.56,0.31906007]
[1741033558575,0.01108437,575.74,575.57,0.34748162]
[1741033558873,0.01108437,575.74,575.58,0.31906007]
[1741033559674,0.01108437,575.74,575.57,0.34748162]
[1741033559874,0.01108437,575.74,575.58,0.31911365]
[1741033561871,0.01108437,575.74,575.59,0.34746955]
[1741033562075,0.01108437,575.74,575.6,0.31911365]
[1741033562271,1.81226403,576.91,575.61,0.31911365]
[1741033562476,1.81226403,576.91,575.62,0.31911365]
[1741033562673,2.15893855,576.91,575.6,0.31911365]
[1741033562876,2.15893855,576.91,575.61,0.31911365]
[1741033563078,2.15893855,576.91,575.6,0.31911365]
[1741033563276,2.15893855,576.91,575.61,0.31911365]
[1741033563473,2.15893855,576.91,575.59,0.34746955]
[1741033563474,2.15893855,576.91,575.62,0.31911365]
[1741033563675,2.15893855,576.91,575.63,0.31911365]
[1741033563878,2.15893855,576.91,575.6,0.31911365]
[1741033564078,2.15893855,576.91,575.61,0.31911365]
[1741033564280,2.15893855,576.91,575.6,0.31911365]
[1741033564678,2.15893855,576.91,575.61,0.31911365]
[1741033564872,2.15893855,576.91,575.59,0.34746955]
[1741033564873,2.15893855,576.91,575.62,0.31911365]
[1741033565075,0.34667452,576.91,575.63,0.31911365]
[1741033565275,0.34667452,576.91,575.6,0.31911365]
[1741033565483,1.81233481,576.9,575.61,0.31911365]
[1741033565676,1.81233481,576.9,575.62,0.31915934]
[1741033565981,1.81233481,576.9,575.63,0.31915934]
[1741033566176,1.81233481,576.9,575.6,0.31915934]
[1741033566376,1.81233481,576.9,575.61,0.31915934]
[1741033566575,1.81233481,576.9,575.62,0.31915934]
[1741033566881,1.81233481,576.9,575.63,0.31915934]
[1741033567080,1.81233481,576.9,575.6,0.31915934]
[1741033567377,1.81233481,576.9,575.61,0.31915934]
[1741033567583,1.81233481,576.9,575.6,0.31915934]
[1741033567881,1.81233481,576.9,575.59,0.34746955]
[1741033569376,1.01142982,576.83,575.59,0.34746955]
[1741033569579,1.01142982,576.79,575.59,0.34746955]
[1741033569785,1.01142982,576.81,575.59,0.34746955]
[1741033569983,1.01142982,576.78,575.59,0.34746955]
[1741033570278,1.01142982,576.75,575.59,0.34746955]
[1741033570581,1.01142982,576.68,575.59,0.34746955]
[1741033570777,1.01142982,576.67,574.89,1.28520482]
[1741033570982,1.01142982,576.66,574.89,1.28520482]
[1741033571284,1.01142982,576.62,574.89,1.28520482]
[1741033571479,1.01142982,576.6,574.89,1.28520482]
[1741033571778,1.01142982,576.57,574.89,1.28520482]
[1741033572083,1.01142982,576.58,574.89,1.28520482]
[1741033572577,1.01142982,576.77,574.89,1.28520482]
[1741033572782,1.69571262,576.8,574.89,1.28520482]
[1741033573381,4.83910248,576.8,574.89,1.28520482]
[1741033573583,4.72770323,576.79,574.89,1.28520482]
[1741033573781,1.69571262,576.78,574.89,1.28520482]
[1741033574084,1.69571262,576.78,574.7,1.28520482]
[1741033574383,1.8132319,576.77,575.32,0.31930924]
[1741033574581,4.47452509,576.77,575.33,0.34762657]
[1741033574781,0.96558057,576.76,575.34,0.31930924]
[1741033574979,3.98780857,576.77,575.34,0.31930924]
[1741033575182,4.2057091,576.76,575.34,0.31930924]
[1741033575777,1.93439376,576.75,575.34,0.31930924]
[1741033575984,4.10897043,576.75,575.34,0.31930924]
[1741033576178,4.20645975,576.74,575.34,0.31930924]
[1741033576376,4.20615428,576.74,575.34,0.31930924]
[1741033576579,1.8132319,576.77,575.34,0.31930924]
[1741033576778,1.8132319,576.77,575.35,0.31930924]
[1741033576983,1.8132319,576.77,575.36,0.31930924]
[1741033577285,1.8132319,576.77,575.37,0.31930924]
[1741033577584,1.8132319,576.77,575.38,0.31930924]
[1741033577783,1.8132319,576.77,575.34,0.31930924]
[1741033577979,1.8132319,576.77,575.35,0.31930924]
[1741033578187,1.8132319,576.77,575.36,0.31930924]
[1741033578485,1.8132319,576.77,575.37,0.31930924]
[1741033578679,1.8132319,576.77,575.38,0.31930924]
[1741033578984,1.8132319,576.77,575.39,0.31930924]
[1741033579186,1.8132319,576.77,575.4,0.31930924]
[1741033579585,1.8132319,576.77,575.41,0.31930924]
[1741033579786,0.34667452,576.91,575.42,0.31930924]
[1741033579985,1.8124764,576.85,575.43,0.31930924]
[1741033580186,1.2089961,577.05,575.44,0.31930924]
[1741033580387,2.6611765,577.23,575.45,0.31930924]
[1741033580587,1.81253933,576.84,575.46,0.31930924]
[1741033580885,5.73780661,577.41,575.47,0.31930924]
[1741033581087,1.81214607,577.22,575.48,0.31930924]
[1741033581387,2.66115698,577.39,575.49,0.31930924]
[1741033581585,2.66115698,577.39,575.5,0.31930924]
[1741033581586,1.81215393,577.21,575.5,0.31930924]
[1741033581782,1.01142982,577.32,575.5,0.31930924]
[1741033581983,2.90491008,577.39,575.51,0.31930924]
[1741033582184,1.81205171,577.2,575.52,0.31930924]
[1741033582387,4.72637679,577.38,575.53,0.31930924]
[1741033582580,1.81187088,577.19,575.54,0.31930924]
[1741033582780,4.20554578,577.36,575.55,0.31930924]
[1741033582980,2.66115698,577.35,575.56,0.31930924]
[1741033583180,4.20577175,577.36,575.57,0.31930924]
[1741033583390,4.20577175,577.36,575.52,1.675]
[1741033583391,4.20577175,577.36,575.58,0.31930924]
[1741033583686,3.14898221,577.35,575.59,0.31930924]
[1741033583881,1.69591398,577.34,575.6,0.31930924]
[1741033584087,5.92578955,577.34,575.61,0.31930924]
[1741033584286,4.96054655,577.34,575.62,0.31930924]
[1741033584483,1.81156434,577.34,575.63,0.31930924]
[1741033584785,1.81156434,577.34,575.64,0.31930924]
[1741033584986,1.81156434,577.34,575.65,0.31930924]
[1741033585187,1.81156434,577.34,575.66,0.31930924]
[1741033585382,1.81156434,577.34,575.67,0.31930924]
[1741033585582,1.81156434,577.34,575.68,0.31930924]
[1741033585889,1.81156434,577.34,575.69,0.31930924]
[1741033586088,4.72526853,577.49,575.7,0.31930924]
[1741033586288,1.81162721,577.33,575.71,0.31930924]
[1741033586488,4.72526853,577.47,575.58,1.678]
[1741033586788,1.81163507,577.32,575.59,0.3189487]
[1741033586984,2.66048028,577.46,575.6,0.3189487]
[1741033587190,1.2089961,577.45,575.61,0.3189487]
[1741033587390,1.81178441,577.31,575.62,0.3189487]
[1741033587689,2.90440697,577.45,575.63,0.3189487]
[1741033587690,5.93426463,577.44,575.63,0.3189487]
[1741033587991,1.81185516,577.3,575.63,0.3189487]
[1741033588290,1.2089961,577.42,575.58,1.678]
[1741033588489,5.93426463,577.42,575.59,0.31899205]
[1741033588685,1.69541087,577.41,575.6,0.31899205]
[1741033588883,4.84439308,577.41,575.61,0.31899205]
[1741033589083,4.72526853,577.4,575.62,0.31899205]
[1741033589287,1.69541087,577.39,575.59,0.31899205]
[1741033589592,5.80946249,577.39,575.6,0.31899205]
[1741033589890,4.72526853,577.38,575.61,0.31903928]
[1741033590084,1.69541087,577.37,575.59,0.31903928]
[1741033590288,1.69541087,577.37,575.58,1.678]
[1741033590289,1.69541087,577.37,575.6,0.31903928]
[1741033590488,1.69541087,577.37,575.61,0.31903928]
[1741033590691,3.14898221,577.37,575.62,0.31903928]
[1741033590887,1.69541087,577.36,575.63,0.31903928]
[1741033591093,4.20459134,577.36,575.64,0.31903928]
[1741033591290,4.20459134,577.36,575.65,0.31903928]
[1741033591484,4.72538267,577.36,575.66,0.31903928]
[1741033591789,4.72538267,577.36,575.58,1.678]
[1741033591790,4.84439308,577.35,575.67,0.31903928]
[1741033591992,4.72538267,577.34,575.68,0.31903928]
[1741033592193,1.69541087,577.33,575.59,0.31903928]
[1741033592495,5.80946249,577.33,575.6,0.31903928]
[1741033592693,5.80946249,577.33,575.58,1.678]
[1741033592694,4.72538267,577.32,575.61,0.31903928]
[1741033592993,4.84439308,577.31,575.59,0.31903928]
[1741033593193,4.72538267,577.3,575.6,0.31903928]
[1741033593487,1.69541087,577.29,575.61,0.31903928]
[1741033593792,4.84439308,577.29,575.62,0.31903928]
[1741033593995,4.72538267,577.28,575.63,0.31903928]
[1741033594188,1.69541087,577.27,575.59,0.31903928]
[1741033594395,1.69541087,577.27,575.6,0.31903928]
[1741033594590,4.84439308,577.27,575.59,0.31903928]
[1741033594793,4.20459134,577.26,575.6,0.31903928]
[1741033594988,4.20459134,577.26,575.58,1.678]
[1741033594989,4.72547156,577.26,575.61,0.31903928]
[1741033595188,4.84439308,577.25,575.62,0.31903928]
[1741033595391,4.72547822,577.24,575.63,0.31903928]
[1741033595596,4.72547822,577.24,575.58,1.678]
[1741033595597,1.69541087,577.23,575.64,0.31903928]
[1741033595792,1.69541087,577.23,575.64,1.415]
[1741033595990,1.69541087,577.23,575.65,0.31903928]
[1741033596188,3.14898221,577.23,575.66,0.31903928]
[1741033596391,4.11405162,577.23,575.67,0.31903928]
[1741033596587,4.19461887,577.22,575.68,0.31903928]
[1741033596793,0.96506941,577.22,575.69,0.31903928]
[1741033597089,1.8118866,577.34,575.7,0.31903928]
[1741033597293,1.8118866,577.34,575.71,0.31903928]
[1741033597490,1.8118866,577.34,575.72,0.31903928]
[1741033597690,1.8118866,577.34,575.73,0.31903928]
[1741033597895,1.8118866,577.34,575.74,0.31903928]
[1741033598196,1.81162721,577.33,575.75,0.31903928]
[1741033598393,1.81162721,577.33,575.76,0.31903928]
[1741033598590,1.81162721,577.33,575.77,0.31903928]
[1741033598796,6.52705564,577.33,575.65,0.31903928]
[1741033598996,4.71542843,577.32,575.66,0.31903928]
[1741033599197,7.86441064,577.31,575.67,0.31903928]
[1741033599390,4.71542843,577.3,575.68,0.31903928]
[1741033599591,1.69010202,577.29,575.69,0.31903928]
[1741033599790,1.69010202,577.29,575.7,0.31903928]
[1741033599991,3.14898221,577.29,575.71,0.31903928]
[1741033600190,0.96506941,577.28,575.72,0.31903928]
[1741033600390,0.96506941,577.28,575.73,0.31903928]
[1741033600598,1.81162721,577.33,575.74,0.31903928]
[1741033600794,1.81162721,577.33,575.75,0.31903928]
[1741033600996,1.81162721,577.33,575.76,0.31903928]
[1741033601197,1.81162721,577.33,575.77,0.31903928]
[1741033601396,1.81162721,577.33,575.78,0.31903928]
[1741033601699,1.81162721,577.33,575.66,1.225]
[1741033601997,1.81162721,577.33,575.67,0.31882181]
[1741033602199,1.81162721,577.33,575.68,0.31882181]
[1741033602398,1.81162721,577.33,575.69,0.31882181]
[1741033602600,1.81162721,577.33,575.71,0.34739712]
[1741033602894,0.34642832,577.32,575.72,0.31880439]
[1741033603099,0.34642832,577.32,575.73,0.31880439]
[1741033603301,0.34642832,577.32,575.74,0.31880439]
[1741033603500,0.34642832,577.32,575.75,0.31880439]
[1741033603796,0.34642832,577.32,575.76,0.31880439]
[1741033603997,0.34642832,577.32,575.77,0.31880439]
[1741033604199,0.34642832,577.32,575.78,0.31881438]
[1741033604502,0.34642832,577.32,575.79,0.31881438]
[1741033604702,0.34642832,577.32,575.8,0.31881438]
[1741033604896,0.34642832,577.32,575.81,0.31881438]
[1741033605201,0.34642832,577.32,575.82,0.31881438]
[1741033605399,0.34642832,577.32,575.83,0.31881438]
[1741033605609,0.34642832,577.32,575.84,0.31881438]
[1741033605806,0.34642832,577.32,575.85,0.31881438]
[1741033606007,0.34642832,577.32,575.86,0.31881438]
[1741033606209,0.34642832,577.32,575.87,0.31881438]
[1741033606410,0.34642832,577.32,575.88,0.31881438]
[1741033606608,0.34642832,577.32,575.89,0.31881438]
[1741033606804,0.34642832,577.32,575.9,0.31881438]
[1741033607005,0.34642832,577.32,575.91,0.31881438]
[1741033607214,0.34642832,577.32,575.92,0.31881438]
[1741033607412,0.34642832,577.32,575.93,0.31881438]
[1741033607608,0.34642832,577.32,575.94,0.31881438]
[1741033607806,0.34642832,577.32,575.95,0.31881438]
[1741033608010,0.34642832,577.32,575.96,0.31881438]
[1741033608305,0.34642832,577.32,575.97,0.31881438]
[1741033608509,0.34642832,577.32,575.98,0.31881438]
[1741033608713,0.34642832,577.32,575.99,0.34722825]
[1741033608906,0.34642832,577.32,576.0,0.31881438]
[1741033609112,0.34642832,577.32,576.01,0.31881438]
[1741033609415,0.34642832,577.32,576.02,0.31881438]
[1741033609617,0.34642832,577.32,576.03,0.31881438]
[1741033609917,0.34642832,577.32,576.04,0.66601249]
[1741033610218,0.34642832,577.32,576.05,0.31881438]
[1741033610417,1.81074741,577.31,576.06,0.31881438]
[1741033610716,1.81074741,577.31,576.04,0.34719811]
[1741033610717,1.81074741,577.31,576.07,0.31881438]
[1741033610918,1.81074741,577.31,576.08,0.66598838]
[1741033611118,1.81074741,577.31,576.09,0.31881438]
[1741033611913,1.81074741,577.31,576.1,1.222]
[1741033612218,1.81074741,577.31,576.11,0.31881438]
[1741033613018,0.34642832,577.32,576.11,0.31881438]
[1741033613513,1.81056684,577.31,576.11,0.31881438]
[1741033615118,1.81056684,577.31,576.1,1.222]
[1741033615920,0.34644632,577.29,576.1,1.222]
[1741033616821,0.34644632,577.29,576.11,1.544]
[1741033618819,2.0348917,577.29,576.11,1.544]
[1741033619324,5.05641681,577.29,576.11,1.544]
[1741033619524,3.49985256,577.28,576.11,1.544]
[1741033619820,1.20867381,577.27,576.11,1.544]
[1741033620023,5.39802363,577.27,576.11,1.544]
[1741033620326,0.34647033,577.25,576.11,1.544]
[1741033620819,2.03491571,577.25,576.11,1.544]
[1741033621224,3.48861825,577.25,576.11,1.544]
[1741033621424,1.68844538,577.24,576.11,1.544]
[1741033621625,4.18934982,577.24,576.11,1.544]
[1741033621826,0.96188632,577.23,576.11,1.544]
[1741033622028,0.96188632,577.24,576.11,1.544]
[1741033622226,3.48861825,577.25,576.11,1.544]
[1741033622428,0.96317683,577.24,576.11,1.544]
[1741033622626,1.20867381,577.27,576.11,1.544]
[1741033622827,1.20867381,577.27,576.12,0.31896655]
[1741033623026,1.20867381,577.27,576.11,1.544]
[1741033623223,1.81140718,577.28,576.12,0.31891382]
[1741033624528,1.81140718,577.28,576.11,1.544]
[1741033628229,1.81140718,577.28,576.12,0.31891482]
[1741033628724,1.81140718,577.28,576.13,1.578]
[1741033629124,1.81140718,577.28,576.14,0.31891482]
[1741033629330,1.81140718,577.28,576.13,1.578]
[1741033629530,1.81140718,577.28,576.14,0.31890764]
[1741033631026,1.81140718,577.28,576.13,1.578]
[1741033631226,1.81140718,577.28,576.14,0.31891291]
[1741033632527,1.81140718,577.28,576.13,1.578]
[1741033633030,1.81140718,577.28,576.14,0.31893432]
[1741033633233,1.81140718,577.28,576.13,1.578]
[1741033634030,1.00725779,577.44,576.14,1.404]
[1741033634331,1.81135218,577.27,576.14,1.404]
[1741033634529,1.00725779,577.54,576.14,1.404]
[1741033634729,1.8112579,577.26,576.14,1.404]
[1741033634929,1.00725779,577.56,576.14,1.404]
[1741033635129,1.00725779,577.57,576.15,0.31893058]
[1741033635330,1.00725779,577.56,576.15,0.31893058]
[1741033635529,1.00725779,577.57,576.15,0.31893058]
[1741033635730,1.0163932,577.57,576.15,0.31893058]
[1741033635936,1.0163932,577.56,576.15,0.31893058]
[1741033636236,1.81083378,577.56,576.15,0.31893058]
[1741033636435,1.0163932,577.55,576.15,0.31893058]
[1741033636635,1.0163932,577.54,576.15,0.31893058]
[1741033636835,1.0163932,577.53,576.15,0.31893058]
[1741033637032,1.70498072,577.54,576.15,0.31893058]
[1741033637233,1.8108966,577.52,576.15,0.31893058]
[1741033637636,7.65609061,577.52,576.15,0.31893058]
[1741033637832,4.23298172,577.51,576.15,0.31893058]
[1741033638139,1.21910712,577.5,576.15,0.31893058]
[1741033638338,2.93059973,577.5,576.15,0.31893058]
[1741033639039,4.88872661,577.5,576.14,1.404]
[1741033639339,4.7650757,577.49,576.14,1.404]
[1741033639638,1.71149261,577.48,576.14,1.404]
[1741033639837,1.02021457,577.47,576.14,1.404]
[1741033640033,1.02021457,577.41,576.14,1.404]
[1741033640233,1.02021457,577.37,576.14,1.404]
[1741033640441,1.02021457,577.44,576.14,1.404]
[1741033640641,1.02021457,577.41,576.14,1.404]
[1741033640835,1.02021457,577.42,576.14,1.404]
[1741033641537,1.02021457,577.39,576.14,1.404]
[1741033641839,1.02021457,577.41,576.14,1.404]
[1741033642235,1.02021457,577.32,576.14,1.404]
[1741033642438,1.01829082,577.37,576.14,1.404]
[1741033642739,1.01829082,577.39,576.14,1.404]
[1741033642935,1.01829082,577.38,576.14,1.404]
[1741033643142,1.01829082,577.34,576.14,1.404]
[1741033643443,1.01829082,577.35,576.14,1.404]
[1741033643743,1.01829082,577.37,576.14,1.404]
[1741033643937,1.8114779,577.38,576.15,1.449]
[1741033644836,3.51911524,577.38,576.15,1.449]
[1741033645040,6.5678256,577.38,576.15,1.449]
[1741033645236,4.7563477,577.37,576.15,3.333]
[1741033645441,4.7563477,577.36,576.15,3.333]
[1741033645642,2.72590808,577.35,576.15,3.333]
[1741033645838,1.01827074,577.34,576.15,3.333]
[1741033646044,1.36469306,577.33,576.15,3.333]
[1741033646243,0.34643432,577.31,576.15,3.333]
[1741033646743,1.36470506,577.31,576.15,3.333]
[1741033646943,0.34643432,577.31,576.15,3.333]
[1741033647543,2.05407166,577.31,576.15,3.333]
[1741033648148,3.52366832,577.31,576.15,3.333]
[1741033648344,1.70763734,577.3,576.15,3.333]
[1741033648546,4.1497897,577.3,576.16,0.31896261]
[1741033648745,3.177234,577.3,576.16,0.31896261]
[1741033648946,0.34643432,577.31,576.16,0.31896261]
[1741033649448,0.34643432,577.31,576.15,3.333]
[1741033649747,0.34643432,577.31,576.16,0.31893795]
[1741033650650,0.34643432,577.31,576.15,3.333]